Workbook

Sheet Seniors
A1: The 8th STARS of MATHEMATICS Competition © 11/29/2014, ICHB, Bucharest *** Results *** (+Corr.)
A2: Competitor | B2: Gr. | C2: School | D2: City | E2: P1 | F2: P2 | G2: P3 | H2: P4 | I2: Total | J2: Prize
A3: PUIU Andrei-Bogdan | B3: XII | C3: C.N. V. Alecsandri | D3: Galaţi | E3: 10 | F3: 10 | G3: 10 | H3: 10 | I3: =SUM(E3:H3) -> 40 | J3: First
A4: SPĂTARU Ştefan | B4: XII | C4: ICHB | D4: Bucureşti | E4: 10 | F4: 10 | G4: 10 | H4: 10 | I4: 40 | J4: First
A5: BOCANU Marius | B5: XII | C5: ICHB | D5: Bucureşti | E5: 10 | F5: 10 | G5: 10 | H5: 10 | I5: 40 | J5: First
A6: ANDRONACHE Andrei Teodor | B6: XI | C6: ICHB | D6: Bucureşti | E6: 10 | F6: 10 | G6: 2 | H6: 10 | I6: 32 | J6: Mention
A7: PLOSCARU Ioan Laurenţiu | B7: XI | C7: C.N. A. Lahovari | D7: Rm Vâlcea | E7: 10 | F7: 10 | G7: 10 | H7: 2 | I7: 32 | J7: Mention
A8: BONCIOCAT Ciprian | B8: IX | C8: C.N. T. Vianu | D8: Bucureşti | E8: 10 | F8: 10 | G8: 10 | H8: 1 | I8: 31 | J8: Mention
A9: ION Filip Alexandru | B9: X | C9: C.N. M. Viteazul | D9: Bucureşti | E9: 10 | F9: 10 | G9: 10 | H9: 0 | I9: 30 | J9: Mention
A10: TUDOSE Ştefan Rareş | B10: X | C10: ICHB | D10: Bucureşti | E10: 10 | F10: 10 | G10: 10 | I10: 30 | J10: Mention
A11: MIHALCU Alexandru | B11: X | C11: ICHB | D11: Bucureşti | E11: 10 | F11: 10 | G11: 10 | I11: 30 | J11: Mention
A12: COBZARU Raluca-Ioana | B12: XI | C12: ICHB | D12: Bucureşti | E12: 5 | F12: 10 | G12: 10 | H12: 0 | I12: 25 | J12: ♀Mention
A13: LUCESCU Theodor | B13: X | C13: ICHB | D13: Bucureşti | E13: 10 | F13: 9 | G13: 4 | I13: 23 | J13: Mention
A14: CIOCAN Antonie | B14: IX | C14: ICHB | D14: Bucureşti | F14: 10 | G14: 10 | H14: 2 | I14: 22 | J14: Mention
A15: DOMINTE Ştefan | B15: X | C15: ICHB | D15: Bucureşti | E15: 10 | F15: 10 | G15: 2 | I15: 22 | J15: Mention
A16: STĂNIŞOR Ştefan Dan | B16: XI | C16: ICHB | D16: Bucureşti | E16: 2 | F16: 10 | G16: 10 | I16: 22 | J16: Mention
A17: TELEANU Cristian | B17: XI | C17: Lic. Teor. Ovidius | D17: Constanţa | E17: 10 | F17: 10 | G17: 2 | I17: 22 | J17: Mention
A18: GRAUR Andrei | B18: XI | C18: ICHB | D18: Bucureşti | E18: 0.5 | F18: 10 | G18: 10 | H18: 1 | I18: 21.5 | J18: Mention
A19: IVAN Maria-Romina | B19: XII | C19: ICHB | D19: Bucureşti | E19: 2 | F19: 10 | G19: 9 | I19: 21 | J19: ♀Mention
A20: PAŞA Andrei | B20: X | C20: Colegiul Naţional | D20: Iaşi | E20: 0 | F20: 10 | G20: 1 | H20: 10 | I20: 21 | J20: Mention
A21: DOICA Mihnea-Gabriel | B21: IX | C21: ICHB | D21: Bucureşti | E21: 10 | F21: 10 | I21: 20 | J21: Mention
A22: STOIENESCU Paul | B22: X | C22: ICHB | D22: Bucureşti | E22: 10 | F22: 0 | G22: 10 | I22: 20 | J22: Mention
A23: AVĂDANEI Ovidiu | B23: XI | C23: C.N. E. Racoviţă | D23: Iaşi | E23: 10 | F23: 0 | G23: 9 | H23: 0 | I23: 19 | J23: Mention
A24: PĂTRĂŞCANU Casian | B24: XI | C24: ICHB | D24: Bucureşti | E24: 0 | F24: 10 | G24: 8 | H24: 0 | I24: =SUM(E24:H24) -> 18 | J24: Mention
A25: PLOPEANU Tudor | B25: IX | C25: ICHB | D25: Bucureşti | F25: 5 | H25: 8 | I25: =SUM(E25:H25) -> 13
A26: ANDREICA Radu | B26: IX | C26: ICHB | D26: Bucureşti | E26: 2 | F26: 10 | G26: 0 | I26: 12
A27: BALABAN Alexandru | B27: IX | C27: C.N. T. Vianu | D27: Bucureşti | E27: 2 | F27: 10 | I27: 12
A28: BICHIR Dan Victor | B28: IX | C28: ICHB | D28: Bucureşti | E28: 2 | F28: 10 | G28: 0 | H28: 0 | I28: 12
A29: MUSTĂŢEA Radu Ioan | B29: IX | C29: ICHB | D29: Bucureşti | F29: 10 | G29: 2 | I29: 12
A30: POPESCU Tidor-Dimitrie | B30: X | C30: C.N. T. Vianu | D30: Bucureşti | E30: 0 | F30: 10 | G30: 2 | H30: 0 | I30: 12
A31: TEODORESCU Ioana | B31: X | C31: ICHB | D31: Bucureşti | E31: 0 | F31: 10 | G31: 2 | I31: 12 | J31: ♀
A32: DICILEA Alex Valentin | B32: X | C32: C.N. T. Vianu | D32: Bucureşti | E32: 0 | F32: 10 | G32: 1 | H32: 0 | I32: 11
A33: DIMA Andreea | B33: IX | C33: C.N. T. Vianu | D33: Bucureşti | E33: 10 | F33: 1 | G33: 0 | I33: 11 | J33: ♀
A34: MOROŞANU Robert | B34: X | C34: ICHB | D34: Bucureşti | F34: 10 | I34: 10
A35: LIA Ioana Teodora | B35: X | C35: ICHB | D35: Bucureşti | E35: 0 | F35: 9 | G35: 0 | H35: 0 | I35: =SUM(E35:H35) -> 9 | J35: ♀
A36: CHIROIU Doina | B36: X | C36: ICHB | D36: Bucureşti | E36: 0 | F36: 3 | H36: 2 | I36: 5 | J36: ♀
A37: POPA Ştefan Cristian | B37: IX | C37: ICHB | D37: Bucureşti | F37: 4 | I37: 4
A38: DAMIAN Doru | B38: X | C38: C.N. C.D. Loga | D38: Timişoara | E38: 2 | F38: 0 | G38: 1 | H38: 0 | I38: 3
A39: FRĂSINEANU Anca Gabriela | B39: IX | C39: ICHB | D39: Bucureşti | F39: 1 | G39: 0 | H39: 0 | I39: 1 | J39: ♀
A40: IVANA Iulia | B40: IX | C40: ICHB | D40: Bucureşti | F40: 1 | I40: 1 | J40: ♀
A41: RADU Ana-Maria | B41: IX | C41: ICHB | D41: Bucureşti | E41: 0 | F41: 1 | G41: 0 | I41: 1 | J41: ♀
A42: DONDERA Alin | B42: IX | C42: ICHB | D42: Bucureşti | E42: 0 | F42: 0 | I42: 0
A43: BARBU Sebastian | B43: XII | C43: C.N. M. Viteazul | D43: Ploieşti | J43: DNS
A44: BOGOI Smaranda | B44: IX | C44: ICHB | D44: Bucureşti | J44: ♀DNS
A45: COJOCARIU Sebastian | B45: XI | C45: ICHB | D45: Bucureşti | J45: DNS
A46: FICIU Bogdan | B46: IX | C46: ICHB | D46: Bucureşti | J46: DNS
A47: ILIE Cătălin Andrei | B47: XII | C47: C.N. M. Viteazul | D47: Ploieşti | J47: DNS
A48: JIDOVIN Cristina | B48: XI | C48: ICHB | D48: Bucureşti | J48: ♀DNS
A49: LUCESCU Patrick | B49: XII | C49: ICHB | D49: Bucureşti | J49: DNS
A50: OPREA Adrian | B50: X | C50: C.N. G. Moisil | D50: Urziceni | J50: DNS
A51: TEODORESCU Lavinia | B51: IX | C51: ICHB | D51: Bucureşti | J51: ♀DNS
A54: Corrections | C54: Grand Total | D54: =SUBTOTAL(3,$A$3:$A$42) -> 40 | E54: =SUBTOTAL(9,$E$3:$E$42) -> 177.5 | F54: =SUBTOTAL(9,$F$3:$F$42) -> 304 | G54: =SUBTOTAL(9,$G$3:$G$42) -> 175 | H54: =SUBTOTAL(9,$H$3:$H$42) -> 66 | I54: =SUBTOTAL(9,$I$3:$I$42) -> 722.5 | J54: ***********
C55: Average | D55: ************ | E55: =SUBTOTAL(9,$E$3:$E$42)/D54 -> 4.4375 | F55: =SUBTOTAL(9,$F$3:$F$42)/D54 -> 7.6 | G55: =SUBTOTAL(9,$G$3:$G$42)/D54 -> 4.375 | H55: =SUBTOTAL(9,$H$3:$H$42)/D54 -> 1.65 | I55: =SUBTOTAL(9,$I$3:$I$42)/D54 -> 18.0625 | J55: ***********
A72: GRADING TEAM | B72: P | C72: PREPARATION | D72: Position
B74: 1 | C74: ÖZ Mustafa | D74: Principal
A75: VACARIU Victor | B75: 1.1 | C75: ŞAHIN Ismail | D75: Logistics
A76: ŢUREA Lucian | B76: 1.2 | C76: SCHWARZ Dan | D76: Scientific
B77: 2 | C77: SCHWARZ Dan | D77: Supervisor
A78: GEORGESCU Flavian | B78: 2.1 | C78: COLOR CODES | D78: Counts
A79: NICOLAE Elena | B79: 2.2
B80: 3 | C80: ICHB Bucharest | D80: =COUNTIF(C3:C42,"ICHB") -> 28
A81: ONIŞOR Ionuţ | B81: 3.1 | C81: Other Bucharest | D81: =COUNTIF(D3:D42,"Bucureşti")-D80 -> 6
A82: BARAD Gefry | B82: 3.2 | C82: Province | D82: =D54-D80-D81 -> 6
B83: 4 | C83: Seniors (X/XI/XII) | D83: =D54-D84 -> 26
A84: ŞERBĂNESCU Dinu | B84: 4.1 | C84: Cadets (IX) | D84: =COUNTIF(B3:B42,"IX")+COUNTIF(B3:B42,"VII")+COUNTIF(B3:B42,"VIII") -> 14
A85: SCHWARZ Dan | B85: 4.2 | C85: ♀ (female gender) | D85: =COUNTIF(J3:J42,"*♀*") -> 9
C87: X Grade | D87: =COUNTIF(B3:B42,"X") -> 14
C88: XI Grade | D88: =COUNTIF(B3:B42,"XI") -> 8
C89: XII Grade | D89: =COUNTIF(B3:B42,"XII") -> 4

Sheet Juniors
A1: The 8th STARS of MATHEMATICS Competition © 11/29/2014, ICHB, Bucharest *** Results *** (+Corr.)
A2: Competitor | B2: Gr. | C2: School | D2: City | E2: P1 | F2: P2 | G2: P3 | H2: P4 | I2: Total | J2: Prize
A3: CUTURELA Lenca | B3: VIII | C3: ICHB | D3: Bucureşti | E3: 10 | F3: 10 | G3: 5 | H3: 0 | I3: =SUM(E3:H3) -> 25 | J3: ♀First
A4: BADEA Alexandru | B4: VIII | C4: Şcoala nr. 97 | D4: Bucureşti | E4: 10 | F4: 10 | G4: 4.5 | H4: 0 | I4: 24.5 | J4: Second
A5: PANTEA Andrei Tiberiu | B5: VII | C5: ICHB | D5: Bucureşti | E5: 10 | F5: 10 | G5: 4 | H5: 0 | I5: =SUM(E5:H5) -> 24 | J5: Third
A6: BOŞÂNTĂ Alexandru Andrei | B6: IX | C6: ICHB | D6: Bucureşti | E6: 10 | F6: 10 | G6: 4 | H6: 0 | I6: =SUM(E6:H6) -> 24 | J6: Third
A7: MEMIŞ Edis | B7: VII | C7: Lic. Teor. Traian | D7: Constanţa | E7: 10 | F7: 10 | H7: 0 | I7: 20 | J7: Mention
A8: ABU SHANAB Amina | B8: VI | C8: ICHB | D8: Bucureşti | E8: 10 | F8: 7 | H8: 2 | I8: 19 | J8: ♀Mention
A9: DRĂGOI Sabina | B9: VIII | C9: ICHB | D9: Bucureşti | E9: 10 | F9: 2 | G9: 4 | H9: 0 | I9: 16 | J9: ♀Mention
A10: GAVRILĂ Cosmin | B10: VIII | C10: ICHB | D10: Bucureşti | E10: 10 | F10: 2 | G10: 4 | H10: 0 | I10: 16 | J10: Mention
A11: DIMA Clara-Maria | B11: VIII | C11: ICHB | D11: Bucureşti | E11: 1 | F11: 10 | G11: 4 | H11: 0 | I11: 15 | J11: ♀Mention
A12: ILIANT Theodor Mihai | B12: VIII | C12: C.N. M. cel Bătrân | D12: Constanţa | E12: 10 | F12: 4 | H12: 0 | I12: 14 | J12: Mention
A13: PICU George | B13: VII | C13: ICHB | D13: Bucureşti | E13: 10 | F13: 2 | G13: 0 | H13: 2 | I13: 14 | J13: Mention
A14: TIMOFTE Alexandra | B14: VII | C14: C.N. T. Vianu | D14: Bucureşti | E14: 2 | F14: 2 | G14: 4 | H14: 5 | I14: 13 | J14: ♀Mention
A15: TRAN BACH Nguyen (Tak) | B15: VI | C15: ICHB | D15: Bucureşti | E15: 10 | F15: 1 | H15: 0 | I15: 11
A16: NICOLAE Ioan-Andrei | B16: VIII | C16: ICHB | D16: Bucureşti | E16: 2 | F16: 2 | G16: 4 | H16: 0 | I16: 8
A17: MORECUŢ Andreea Bianca | B17: VIII | C17: Şcoala nr. 97 | D17: Bucureşti | E17: 1 | F17: 2 | G17: 4 | H17: 0 | I17: 7 | J17: ♀
A18: PREOTEASA Mircea Costin | B18: VIII | C18: Şcoala nr. 97 | D18: Bucureşti | E18: 0 | F18: 3 | G18: 0 | H18: 0 | I18: 3
A19: STEGĂRESCU Nicoleta | B19: VII | C19: Şcoala nr. 17 Pia B. | D19: Bucureşti | F19: 0 | G19: 0 | H19: 0 | I19: 0 | J19: ♀
A20: BALACI Andrei Lucian | B20: VII | C20: C.N. Fraţii Buzeşti | D20: Craiova | J20: DNS
A21: CIOC Alex Andrei | B21: VII | C21: Şc. Gimnaz. Traian | D21: Piteşti | J21: DNS
A22: SIMA Andreea | B22: VII | C22: Şcoala nr. 79 | D22: Bucureşti | J22: ♀DNS
A24: Corrections | C24: Grand Total | D24: =SUBTOTAL(3,$A$3:$A$19) -> 17 | E24: =SUBTOTAL(9,$E$3:$E$17) -> 116 | F24: =SUBTOTAL(9,$F$3:$F$19) -> 87 | G24: =SUBTOTAL(9,$G$3:$G$19) -> 41.5 | H24: =SUBTOTAL(9,$H$3:$H$19) -> 9 | I24: =SUBTOTAL(9,$I$3:$I$19) -> 253.5 | J24: ************
C25: Average | D25: ************ | E25: =SUBTOTAL(9,$E$3:$E$19)/D24 -> 6.823529412 | F25: =SUBTOTAL(9,$F$3:$F$19)/D24 -> 5.117647059 | G25: =SUBTOTAL(9,$G$3:$G$19)/D24 -> 2.441176471 | H25: =SUBTOTAL(9,$H$3:$H$19)/D24 -> 0.5294117647 | I25: =SUBTOTAL(9,$I$3:$I$19)/D24 -> 14.91176471 | J25: ************
A33: GRADING TEAM | B33: P | C33: PREPARATION | D33: Position
B35: 1 | C35: ÖZ Mustafa | D35: Principal
A36: IVAN Maria Romina | B36: 1.1 | C36: IVANOVICI Lioara | D36: Logistics
A37: PLOSCARU Ioan Laurenţiu | B37: 1.2 | C37: SCHWARZ Dan | D37: Scientific
B38: 2 | C38: SCHWARZ Dan | D38: Supervisor
A39: ANDRONACHE Andrei | B39: 2.1 | C39: COLOR CODES | D39: Counts
A40: DOICA Mihnea-Gabriel | B40: 2.2
B41: 3 | C41: ICHB Bucharest | D41: =COUNTIF(C3:C19,"ICHB") -> 10
A42: BOCANU Marius | B42: 3.1 | C42: Other Bucharest | D42: =COUNTIF(D3:D19,"Bucureşti")-D41 -> 5
A43: TUDOSE Ştefan Rareş | B43: 3.2 | C43: Province | D43: =D24-D41-D42 -> 2
B44: 4 | C44: Juniors (VI/VII/VIII) | D44: =D24-D45 -> 16
A45: ŞERBĂNESCU Dinu | B45: 4.1 | C45: Cadets (IX) | D45: =COUNTIF(B3:B19,"IX") -> 1
A46: MIHALCU Alexandru | B46: 4.2 | C46: ♀ (female gender) | D46: =COUNTIF(J3:J19,"*♀*") -> 7
C48: VI Grade | D48: =COUNTIF(B3:B19,"VI") -> 2
C49: VII Grade | D49: =COUNTIF(B3:B19,"VII") -> 5
C50: VIII Grade | D50: =COUNTIF(B3:B19,"VIII") -> 9
